fUSD/lending_fUSD_20260517
["ID","MTS","AMOUNT","RATE_DAILY","PERIOD"]
[422441457,1778949055000,-496.36542568,0.00034282,3]
[422441461,1778949055000,-600.0,0.00034312,60]
[422441466,1778949055000,-600.0,0.00034312,60]
[422441474,1778949055000,-600.0,0.00034312,60]
[422441464,1778949055000,-600.0,0.00034312,60]
[422441467,1778949055000,-600.0,0.00034312,60]
[422441463,1778949055000,-600.0,0.00034312,60]
[422441475,1778949055000,-600.0,0.00034312,60]
[422441458,1778949055000,-496.36542568,0.00034282,3]
[422441531,1778949056000,-206.461634,0.00035,7]
[422441534,1778949056000,-151.0,0.00035,7]
[422441530,1778949056000,-206.461634,0.00035,7]
[422441540,1778949056000,-957.294342,0.00035,7]
[422441532,1778949056000,-206.461638,0.00035,7]
[422441533,1778949056000,-151.0,0.00035,7]
[422441536,1778949056000,-2616.983208,0.00035,7]
[422441554,1778949056000,-456.141198,0.00035,7]
[422441527,1778949056000,-214.393253,0.00035,7]
[422441535,1778949056000,-195.596786,0.00035,7]
[422441537,1778949056000,-2616.983208,0.00035,7]
[422441529,1778949056000,-206.461634,0.00035,7]
[422441539,1778949056000,-2616.983208,0.00035,7]
[422441552,1778949056000,-456.141198,0.00035,7]
[422441547,1778949056000,-310.665954,0.00035,7]
[422441542,1778949056000,-151.0,0.00035,7]
[422441541,1778949056000,-957.294342,0.00035,7]
[422441543,1778949056000,-957.294342,0.00035,7]
[422441545,1778949056000,-310.665954,0.00035,7]
[422441538,1778949056000,-2616.983208,0.00035,7]
[422441546,1778949056000,-310.665954,0.00035,7]
[422441548,1778949056000,-310.665954,0.00035,7]
[422441549,1778949056000,-298.496159,0.00035,7]
[422441550,1778949056000,-298.496159,0.00035,7]
[422441561,1778949056000,-289.516242,0.00035,7]
[422441526,1778949056000,-214.393253,0.00035,7]
[422441544,1778949056000,-957.294342,0.00035,7]
[422441528,1778949056000,-214.393245,0.00035,7]
[422441498,1778949056000,-1946.2396019,0.00034675,2]
[422441518,1778949056000,-340000.0,0.00035,4]
[422441502,1778949056000,-3174.36,0.00034787,30]
[422441500,1778949056000,-1058.0,0.000347,30]
[422441497,1778949056000,-539741.4136036,0.00034675,2]
[422441501,1778949056000,-150.98,0.000347,30]
[422441496,1778949056000,-167523.8974559,0.00034675,2]
[422441499,1778949056000,-43594.9917982,0.00034675,2]
[422441503,1778949056000,-1500.0,0.00034795,2]
[422441505,1778949056000,-200.0,0.00034884,2]
[422441504,1778949056000,-1164.5970257,0.00034875,7]
[422441507,1778949056000,-2151.31010153,0.000349,7]
[422441506,1778949056000,-270.80144346,0.00034884,2]
[422441509,1778949056000,-1110.40195127,0.000349,7]
[422441508,1778949056000,-1538.16384994,0.000349,7]
[422441510,1778949056000,-1099.2881188,0.000349,7]
[422441511,1778949056000,-1427.31341347,0.000349,2]
[422441513,1778949056000,-1064.4825706,0.000349,7]
[422441512,1778949056000,-1061.36465421,0.000349,7]
[422441515,1778949056000,-1249.66350408,0.00034945,7]
[422441524,1778949056000,-261.1828,0.00035,7]
[422441522,1778949056000,-151.0,0.00035,7]
[422441514,1778949056000,-186.2,0.000349,120]
[422441523,1778949056000,-151.0,0.00035,7]
[422441516,1778949056000,-150.0,0.00034967,2]
[422441519,1778949056000,-1950.2891859,0.00035,2]
[422441517,1778949056000,-186.56694993,0.00035,120]
[422441525,1778949056000,-214.393253,0.00035,7]
[422441521,1778949056000,-76437.47559614,0.00035,2]
[422441520,1778949056000,-1000.0,0.00035,90]
[422441555,1778949056000,-456.141198,0.00035,7]
[422441581,1778949056000,-500.0,0.00035087,30]
[422441560,1778949056000,-272.760931,0.00035,7]
[422441597,1778949056000,-289.0,0.00035135,30]
[422441592,1778949056000,-400.0,0.00035119,2]
[422441590,1778949056000,-309.0,0.00035095,30]
[422441598,1778949056000,-555.0,0.00035147,10]
[422441589,1778949056000,-295.0,0.00035095,30]
[422441588,1778949056000,-939.0,0.00035095,30]
[422441596,1778949056000,-450.0,0.00035119,2]
[422441591,1778949056000,-1250.0,0.00035095,30]
[422441594,1778949056000,-340.0,0.00035119,2]
[422441595,1778949056000,-450.0,0.00035119,2]
[422441593,1778949056000,-400.0,0.00035119,2]
[422441603,1778949056000,-168.34580579,0.00035166,30]
[422441604,1778949056000,-1500.0,0.000352,7]
[422441607,1778949056000,-350.0,0.00035286,2]
[422441602,1778949056000,-576.0,0.00035166,30]
[422441611,1778949056000,-1190.40117411,0.00035468,2]
[422441608,1778949056000,-297.0,0.00035286,2]
[422441609,1778949056000,-500.0,0.00035361,30]
[422441600,1778949056000,-313.0,0.00035166,30]
[422441601,1778949056000,-179.0,0.00035166,30]
[422441606,1778949056000,-350.0,0.00035286,2]
[422441610,1778949056000,-200.0,0.00035432,2]
[422441605,1778949056000,-170.0,0.00035257,2]
[422441613,1778949056000,-170786.81018297,0.0003561,2]
[422441612,1778949056000,-500.0,0.00035566,120]
[422441615,1778949056000,-151.933482,0.00035616,7]
[422441614,1778949056000,-4509.00530693,0.0003561,2]
[422441599,1778949056000,-394.0,0.00035166,30]
[422441587,1778949056000,-736.0,0.00035095,30]
[422441551,1778949056000,-298.496159,0.00035,7]
[422441585,1778949056000,-600.0,0.00035089,3]
[422441553,1778949056000,-298.496163,0.00035,7]
[422441556,1778949056000,-456.141206,0.00035,7]
[422441559,1778949056000,-272.760927,0.00035,7]
[422441557,1778949056000,-272.760927,0.00035,7]
[422441558,1778949056000,-272.760927,0.00035,7]
[422441562,1778949056000,-289.516242,0.00035,7]
[422441563,1778949056000,-289.516242,0.00035,7]
[422441584,1778949056000,-385.0,0.00035087,2]
[422441571,1778949056000,-1455.722056,0.00035,7]
[422441574,1778949056000,-151.0,0.00035,7]
[422441566,1778949056000,-184.204154,0.00035,7]
[422441569,1778949056000,-1455.722056,0.00035,7]
[422441568,1778949056000,-184.204146,0.00035,7]
[422441573,1778949056000,-151.0,0.00035,7]
[422441572,1778949056000,-1455.722056,0.00035,7]
[422441564,1778949056000,-184.204154,0.00035,7]
[422441583,1778949056000,-400.0,0.00035087,2]
[422441579,1778949056000,-363.633174,0.00035,7]
[422441578,1778949056000,-177.904356,0.00035,7]
[422441577,1778949056000,-363.633174,0.00035,7]
[422441586,1778949056000,-217.0,0.00035095,30]
[422441582,1778949056000,-400.0,0.00035087,2]
[422441580,1778949056000,-177.904356,0.00035,7]
[422441575,1778949056000,-151.0,0.00035,7]
[422441567,1778949056000,-184.204154,0.00035,7]
[422441565,1778949056000,-289.51625,0.00035,7]
[422441570,1778949056000,-1455.722056,0.00035,7]
[422441576,1778949056000,-177.904356,0.00035,7]
[422441659,1778949057000,-300.0,0.00036317,2]
[422441660,1778949057000,-300.66230964,0.00036317,2]
[422441653,1778949057000,-1270.0,0.00036241,2]
[422441655,1778949057000,-3543.0,0.00036241,2]
[422441654,1778949057000,-1223.0,0.00036241,2]
[422441651,1778949057000,-555.0,0.00036214,11]
[422441650,1778949057000,-206.205718,0.000362,12]
[422441649,1778949057000,-576.0,0.00036166,30]
[422441641,1778949057000,-309.0,0.00036095,30]
[422441645,1778949057000,-1288.7,0.00036153,30]
[422441652,1778949057000,-150.0,0.00036241,2]
[422441661,1778949057000,-300.0,0.00036317,2]
[422441669,1778949057000,-1147.52562491,0.00036317,2]
[422441658,1778949057000,-301.8794073,0.00036317,2]
[422441657,1778949057000,-726.26438584,0.00036317,2]
[422441663,1778949057000,-949.2762563,0.00036317,2]
[422441664,1778949057000,-300.0,0.00036317,2]
[422441662,1778949057000,-300.0,0.00036317,2]
[422441665,1778949057000,-1912.98732614,0.00036317,2]
[422441666,1778949057000,-344.08088588,0.00036317,2]
[422441670,1778949057000,-309.68315104,0.00036317,2]
[422441671,1778949057000,-864.71533708,0.00036317,2]
[422441668,1778949057000,-300.0,0.00036317,2]
[422441672,1778949057000,-300.0,0.00036317,2]
[422441667,1778949057000,-527.04605611,0.00036317,2]
[422441646,1778949057000,-394.0,0.00036166,30]
[422441656,1778949057000,-3631.0,0.00036241,2]
[422441644,1778949057000,-2312.0,0.0003615,11]
[422441626,1778949057000,-712.63107374,0.00035978,2]
[422441647,1778949057000,-313.0,0.00036166,30]
[422441674,1778949057000,-300.0,0.00036317,2]
[422441624,1778949057000,-186.2,0.000359,120]
[422441623,1778949057000,-150.0,0.00035899,2]
[422441617,1778949057000,-164.63041949,0.00035616,2]
[422441616,1778949057000,-956.2,0.00035616,2]
[422441620,1778949057000,-500.0,0.00035635,30]
[422441618,1778949057000,-2132.0,0.00035634,11]
[422441619,1778949057000,-500.0,0.00035635,30]
[422441622,1778949057000,-555.0,0.00035681,11]
[422441621,1778949057000,-500.0,0.00035635,30]
[422441625,1778949057000,-621.78829552,0.00035978,2]
[422441627,1778949057000,-200.0,0.0003598,2]
[422441633,1778949057000,-1000.0,0.00036048,2]
[422441630,1778949057000,-942.2,0.00036,7]
[422441635,1778949057000,-400.0,0.00036048,2]
[422441634,1778949057000,-400.0,0.00036048,2]
[422441636,1778949057000,-400.0,0.00036048,2]
[422441629,1778949057000,-12422.14074617,0.00036,2]
[422441628,1778949057000,-25074.59174953,0.00036,2]
[422441632,1778949057000,-1000.0,0.00036048,2]
[422441637,1778949057000,-217.0,0.00036095,30]
[422441631,1778949057000,-1000.0,0.00036048,2]
[422441639,1778949057000,-939.0,0.00036095,30]
[422441642,1778949057000,-1250.0,0.00036095,30]
[422441638,1778949057000,-736.0,0.00036095,30]
[422441640,1778949057000,-295.0,0.00036095,30]
[422441648,1778949057000,-179.0,0.00036166,30]
[422441643,1778949057000,-289.0,0.00036135,30]
[422441684,1778949057000,-300.0,0.00036317,2]
[422441673,1778949057000,-310.99730567,0.00036317,2]
[422441736,1778949057000,-300.0,0.00036317,2]
[422441707,1778949057000,-300.0,0.00036317,2]
[422441706,1778949057000,-300.0,0.00036317,2]
[422441722,1778949057000,-1147.52562491,0.00036317,2]
[422441712,1778949057000,-370.31007711,0.00036317,2]
[422441711,1778949057000,-300.0,0.00036317,2]
[422441715,1778949057000,-300.0,0.00036317,2]
[422441713,1778949057000,-300.0,0.00036317,2]
[422441714,1778949057000,-949.2762563,0.00036317,2]
[422441717,1778949057000,-344.08088588,0.00036317,2]
[422441720,1778949057000,-300.0,0.00036317,2]
[422441719,1778949057000,-300.0,0.00036317,2]
[422441716,1778949057000,-1912.98732614,0.00036317,2]
[422441718,1778949057000,-527.04605611,0.00036317,2]
[422441724,1778949057000,-864.71533708,0.00036317,2]
[422441726,1778949057000,-1791.04776837,0.00036317,2]
[422441728,1778949057000,-300.0,0.00036317,2]
[422441723,1778949057000,-309.68315104,0.00036317,2]
[422441727,1778949057000,-332.02545541,0.00036317,2]
[422441725,1778949057000,-300.0,0.00036317,2]
[422441729,1778949057000,-300.0,0.00036317,2]
[422441732,1778949057000,-300.0,0.00036317,2]
[422441731,1778949057000,-300.0,0.00036317,2]
[422441733,1778949057000,-463.98731895,0.00036317,2]
[422441730,1778949057000,-310.99730567,0.00036317,2]
[422441735,1778949057000,-452.04263183,0.00036317,2]
[422441734,1778949057000,-300.0,0.00036317,2]
[422441675,1778949057000,-463.98731895,0.00036317,2]
[422441710,1778949057000,-300.0,0.00036317,2]
[422441703,1778949057000,-300.34368571,0.00036317,2]
[422441721,1778949057000,-300.0,0.00036317,2]
[422441705,1778949057000,-301.8794073,0.00036317,2]
[422441699,1778949057000,-300.0,0.00036317,2]
[422441676,1778949057000,-300.0,0.00036317,2]
[422441679,1778949057000,-300.0,0.00036317,2]
[422441678,1778949057000,-300.0,0.00036317,2]
[422441683,1778949057000,-309.92123961,0.00036317,2]
[422441682,1778949057000,-484.23291958,0.00036317,2]
[422441681,1778949057000,-575.83960885,0.00036317,2]
[422441680,1778949057000,-300.0,0.00036317,2]
[422441686,1778949057000,-1095.07136273,0.00036317,2]
[422441696,1778949057000,-300.0,0.00036317,2]
[422441697,1778949057000,-604.63991303,0.00036317,2]
[422441685,1778949057000,-390.75742779,0.00036317,2]
[422441687,1778949057000,-300.0,0.00036317,2]
[422441689,1778949057000,-300.0,0.00036317,2]
[422441677,1778949057000,-452.04263183,0.00036317,2]
[422441695,1778949057000,-300.0,0.00036317,2]
[422441693,1778949057000,-491.60834316,0.00036317,2]
[422441709,1778949057000,-300.20522211,0.00036317,2]
[422441708,1778949057000,-300.66230964,0.00036317,2]
[422441702,1778949057000,-893.66998664,0.00036317,2]
[422441704,1778949057000,-726.26438584,0.00036317,2]
[422441700,1778949057000,-527.89629163,0.00036317,2]
[422441701,1778949057000,-1067.23644452,0.00036317,2]
[422441694,1778949057000,-300.0,0.00036317,2]
[422441690,1778949057000,-300.0,0.00036317,2]
[422441691,1778949057000,-300.0,0.00036317,2]
[422441692,1778949057000,-492.84022017,0.00036317,2]
[422441688,1778949057000,-300.0,0.00036317,2]
[422441698,1778949057000,-300.0,0.00036317,2]
[422441777,1778949058000,-301.98895015,0.00036317,2]
[422441774,1778949058000,-300.0,0.00036317,2]
[422441776,1778949058000,-300.0,0.00036317,2]
[422441767,1778949058000,-300.0,0.00036317,2]
[422441775,1778949058000,-301.8794073,0.00036317,2]
[422441782,1778949058000,-300.0,0.00036317,2]
[422441772,1778949058000,-893.66998664,0.00036317,2]
[422441771,1778949058000,-1067.23644452,0.00036317,2]
[422441769,1778949058000,-478.02559862,0.00036317,2]
[422441768,1778949058000,-300.0,0.00036317,2]
[422441778,1778949058000,-300.0,0.00036317,2]
[422441773,1778949058000,-726.26438584,0.00036317,2]
[422441779,1778949058000,-300.66230964,0.00036317,2]
[422441789,1778949058000,-300.0,0.00036317,2]
[422441780,1778949058000,-300.0,0.00036317,2]
[422441784,1778949058000,-300.0,0.00036317,2]
[422441783,1778949058000,-949.2762563,0.00036317,2]
[422441794,1778949058000,-300.0,0.00036317,2]
[422441787,1778949058000,-344.08088588,0.00036317,2]
[422441790,1778949058000,-300.0,0.00036317,2]
[422441788,1778949058000,-300.0,0.00036317,2]
[422441785,1778949058000,-1912.98732614,0.00036317,2]
[422441792,1778949058000,-309.68315104,0.00036317,2]
[422441791,1778949058000,-1147.52562491,0.00036317,2]
[422441786,1778949058000,-527.04605611,0.00036317,2]
[422441793,1778949058000,-300.0,0.00036317,2]
[422441764,1778949058000,-300.0,0.00036317,2]
[422441781,1778949058000,-300.0,0.00036317,2]
[422441763,1778949058000,-300.0,0.00036317,2]
[422441795,1778949058000,-864.71533708,0.00036317,2]
[422441762,1778949058000,-300.0,0.00036317,2]
[422441745,1778949058000,-1127.79186826,0.00036317,2]
[422441746,1778949058000,-300.0,0.00036317,2]
[422441739,1778949058000,-300.0,0.00036317,2]
[422441737,1778949058000,-300.0,0.00036317,2]
[422441738,1778949058000,-300.0,0.00036317,2]
[422441740,1778949058000,-300.0,0.00036317,2]
[422441741,1778949058000,-300.0,0.00036317,2]
[422441744,1778949058000,-300.0,0.00036317,2]
[422441743,1778949058000,-309.92123961,0.00036317,2]
[422441742,1778949058000,-484.23291958,0.00036317,2]
[422441748,1778949058000,-300.0,0.00036317,2]
[422441749,1778949058000,-1095.07136273,0.00036317,2]
[422441747,1778949058000,-300.0,0.00036317,2]
[422441750,1778949058000,-300.0,0.00036317,2]
[422441757,1778949058000,-300.0,0.00036317,2]
[422441758,1778949058000,-300.0,0.00036317,2]
[422441756,1778949058000,-300.0,0.00036317,2]
[422441752,1778949058000,-300.0,0.00036317,2]
[422441754,1778949058000,-300.0,0.00036317,2]
[422441753,1778949058000,-300.0,0.00036317,2]
[422441755,1778949058000,-300.0,0.00036317,2]
[422441751,1778949058000,-300.0,0.00036317,2]
[422441760,1778949058000,-300.0,0.00036317,2]
[422441770,1778949058000,-527.89629163,0.00036317,2]
[422441759,1778949058000,-300.0,0.00036317,2]
[422441761,1778949058000,-492.84022017,0.00036317,2]
[422441765,1778949058000,-300.0,0.00036317,2]
[422441766,1778949058000,-604.63991303,0.00036317,2]
[422441800,1778949058000,-310.99730567,0.00036317,2]
[422441853,1778949058000,-300.66230964,0.00036317,2]
[422441803,1778949058000,-463.98731895,0.00036317,2]
[422441826,1778949058000,-300.0,0.00036317,2]
[422441828,1778949058000,-300.0,0.00036317,2]
[422441827,1778949058000,-300.0,0.00036317,2]
[422441835,1778949058000,-300.0,0.00036317,2]
[422441845,1778949058000,-527.89629163,0.00036317,2]
[422441834,1778949058000,-300.0,0.00036317,2]
[422441838,1778949058000,-300.0,0.00036317,2]
[422441837,1778949058000,-300.0,0.00036317,2]
[422441840,1778949058000,-300.0,0.00036317,2]
[422441836,1778949058000,-492.84022017,0.00036317,2]
[422441839,1778949058000,-300.0,0.00036317,2]
[422441844,1778949058000,-300.0,0.00036317,2]
[422441841,1778949058000,-604.63991303,0.00036317,2]
[422441842,1778949058000,-300.0,0.00036317,2]
[422441852,1778949058000,-300.0,0.00036317,2]
[422441856,1778949058000,-300.0,0.00036317,2]
[422441848,1778949058000,-726.26438584,0.00036317,2]
[422441850,1778949058000,-301.8794073,0.00036317,2]
[422441846,1778949058000,-1067.23644452,0.00036317,2]
[422441851,1778949058000,-300.0,0.00036317,2]
[422441854,1778949058000,-300.0,0.00036317,2]
[422441849,1778949058000,-300.0,0.00036317,2]
[422441847,1778949058000,-893.66998664,0.00036317,2]
[422441857,1778949058000,-300.0,0.00036317,2]
[422441855,1778949058000,-300.0,0.00036317,2]
[422441858,1778949058000,-949.2762563,0.00036317,2]
[422441805,1778949058000,-577.38521552,0.00036317,2]
[422441833,1778949058000,-300.0,0.00036317,2]
[422441823,1778949058000,-1095.07136273,0.00036317,2]
[422441843,1778949058000,-300.0,0.00036317,2]
[422441830,1778949058000,-300.0,0.00036317,2]
[422441802,1778949058000,-300.0,0.00036317,2]
[422441825,1778949058000,-300.0,0.00036317,2]
[422441799,1778949058000,-300.0,0.00036317,2]
[422441806,1778949058000,-452.04263183,0.00036317,2]
[422441807,1778949058000,-300.0,0.00036317,2]
[422441797,1778949058000,-332.02545541,0.00036317,2]
[422441804,1778949058000,-300.0,0.00036317,2]
[422441796,1778949058000,-1791.04776837,0.00036317,2]
[422441801,1778949058000,-300.0,0.00036317,2]
[422441809,1778949058000,-300.0,0.00036317,2]
[422441810,1778949058000,-300.0,0.00036317,2]
[422441808,1778949058000,-300.0,0.00036317,2]
[422441811,1778949058000,-300.0,0.00036317,2]
[422441812,1778949058000,-300.0,0.00036317,2]
[422441798,1778949058000,-300.0,0.00036317,2]
[422441832,1778949058000,-300.0,0.00036317,2]
[422441829,1778949058000,-300.0,0.00036317,2]
[422441831,1778949058000,-300.0,0.00036317,2]
[422441824,1778949058000,-574.13733978,0.00036317,2]
[422441813,1778949058000,-484.23291958,0.00036317,2]
[422441821,1778949058000,-300.0,0.00036317,2]
[422441820,1778949058000,-300.0,0.00036317,2]
[422441822,1778949058000,-300.0,0.00036317,2]
[422441817,1778949058000,-300.0,0.00036317,2]
[422441815,1778949058000,-300.0,0.00036317,2]
[422441818,1778949058000,-1127.79186826,0.00036317,2]
[422441819,1778949058000,-300.0,0.00036317,2]
[422441814,1778949058000,-309.92123961,0.00036317,2]
[422441816,1778949058000,-300.0,0.00036317,2]
[422441895,1778949059000,-1234.9362,0.00036886,2]
[422441899,1778949059000,-501.118191,0.00036931,120]
[422441898,1778949059000,-2312.0,0.00036914,11]
[422441897,1778949059000,-3900.7200086,0.0003691,2]
[422441906,1778949059000,-1216.55150925,0.00036937,7]
[422441887,1778949059000,-288.0,0.00036575,30]
[422441907,1778949059000,-2005.9555727,0.00036999,30]
[422441896,1778949059000,-186.2,0.000369,120]
[422441891,1778949059000,-555.0,0.00036748,12]
[422441885,1778949059000,-300.0,0.00036317,2]
[422441905,1778949059000,-1418.05787697,0.00036937,7]
[422441886,1778949059000,-2082.01435369,0.00036352,5]
[422441908,1778949059000,-342.39213103,0.00037,2]
[422441904,1778949059000,-1212.98817624,0.00036937,7]
[422441921,1778949059000,-151.0,0.000371,7]
[422441900,1778949059000,-500.0,0.00036931,120]
[422441903,1778949059000,-1631.21532968,0.00036937,2]
[422441901,1778949059000,-2458.64011604,0.00036937,7]
[422441910,1778949059000,-151.29889973,0.00037,2]
[422441920,1778949059000,-300.0,0.000371,5]
[422441922,1778949059000,-151.0,0.000371,7]
[422441909,1778949059000,-8085.63612451,0.00037,15]
[422441914,1778949059000,-73934.14983054,0.000371,2]
[422441913,1778949059000,-3994.60520364,0.00037078,2]
[422441911,1778949059000,-8233.7061,0.00037017,2]
[422441916,1778949059000,-300.0,0.000371,5]
[422441912,1778949059000,-5800.0,0.00037078,2]
[422441918,1778949059000,-300.0,0.000371,5]
[422441902,1778949059000,-1757.90154279,0.00036937,7]
[422441892,1778949059000,-508.50723266,0.00036751,2]
[422441859,1778949059000,-300.0,0.00036317,2]
[422441889,1778949059000,-162.66,0.0003669,30]
[422441915,1778949059000,-151.0,0.000371,7]
[422441869,1778949059000,-300.0,0.00036317,2]
[422441861,1778949059000,-300.0,0.00036317,2]
[422441860,1778949059000,-1912.98732614,0.00036317,2]
[422441862,1778949059000,-344.08088588,0.00036317,2]
[422441864,1778949059000,-300.0,0.00036317,2]
[422441863,1778949059000,-527.04605611,0.00036317,2]
[422441868,1778949059000,-309.68315104,0.00036317,2]
[422441865,1778949059000,-300.0,0.00036317,2]
[422441867,1778949059000,-1147.52562491,0.00036317,2]
[422441866,1778949059000,-300.0,0.00036317,2]
[422441871,1778949059000,-300.0,0.00036317,2]
[422441881,1778949059000,-577.38521552,0.00036317,2]
[422441873,1778949059000,-300.0,0.00036317,2]
[422441872,1778949059000,-1791.04776837,0.00036317,2]
[422441870,1778949059000,-864.71533708,0.00036317,2]
[422441874,1778949059000,-300.0,0.00036317,2]
[422441875,1778949059000,-300.0,0.00036317,2]
[422441878,1778949059000,-300.0,0.00036317,2]
[422441877,1778949059000,-300.0,0.00036317,2]
[422441879,1778949059000,-463.98731895,0.00036317,2]
[422441880,1778949059000,-300.0,0.00036317,2]
[422441876,1778949059000,-310.99730567,0.00036317,2]
[422441883,1778949059000,-452.04263183,0.00036317,2]
[422441893,1778949059000,-725.12821339,0.00036793,2]
[422441894,1778949059000,-8233.7061,0.00036886,2]
[422441888,1778949059000,-3174.36,0.00036635,30]
[422441890,1778949059000,-150.0,0.00036715,2]
[422441884,1778949059000,-300.0,0.00036317,2]
[422441882,1778949059000,-300.0,0.00036317,2]
[422441917,1778949059000,-300.0,0.000371,5]
[422441980,1778949059000,-1500.0,0.00038,5]
[422441926,1778949059000,-151.0,0.000371,7]
[422441959,1778949059000,-508.50723266,0.00037751,2]
[422441957,1778949059000,-8233.7061,0.00037676,2]
[422441954,1778949059000,-738.44,0.00037652,2]
[422441961,1778949059000,-152.4,0.00037754,60]
[422441960,1778949059000,-284.12412572,0.00037753,120]
[422441963,1778949059000,-8233.7061,0.00037808,2]
[422441962,1778949059000,-725.12821339,0.00037793,2]
[422441974,1778949059000,-152.0,0.00038,120]
[422441973,1778949059000,-342.0,0.00038,30]
[422441975,1778949059000,-150.98,0.00038,30]
[422441970,1778949059000,-152.4,0.00037954,60]
[422441969,1778949059000,-8233.7061,0.0003794,2]
[422441968,1778949059000,-186.2,0.000379,120]
[422441965,1778949059000,-555.0,0.00037816,13]
[422441964,1778949059000,-1234.9362,0.00037808,2]
[422441972,1778949059000,-152.0,0.00037954,30]
[422441966,1778949059000,-152.4,0.00037854,60]
[422441971,1778949059000,-152.0,0.00037954,30]
[422441978,1778949059000,-1560.20392472,0.00038,2]
[422441976,1778949059000,-155.0,0.00038,120]
[422441986,1778949059000,-1208.72631004,0.000381,30]
[422441983,1778949059000,-152.4,0.00038054,60]
[422441977,1778949059000,-238651.24508936,0.00038,2]
[422441985,1778949059000,-9368.3861182,0.000381,33]
[422441981,1778949059000,-151.0,0.00038,7]
[422441979,1778949059000,-151.0,0.00038,7]
[422441984,1778949059000,-8233.7061,0.00038071,2]
[422441982,1778949059000,-152.0,0.00038028,30]
[422441919,1778949059000,-300.0,0.000371,5]
[422441952,1778949059000,-400.0,0.00037615,2]
[422441953,1778949059000,-400.0,0.00037615,2]
[422441967,1778949059000,-205.74372144,0.0003788,2]
[422441955,1778949059000,-221.53,0.00037652,2]
[422441956,1778949059000,-152.4,0.00037654,60]
[422441923,1778949059000,-151.0,0.000371,7]
[422441927,1778949059000,-232.716665,0.000371,7]
[422441924,1778949059000,-151.0,0.000371,7]
[422441929,1778949059000,-151.0,0.000371,7]
[422441935,1778949059000,-345.924005,0.000371,7]
[422441934,1778949059000,-345.924005,0.000371,7]
[422441928,1778949059000,-151.0,0.000371,7]
[422441931,1778949059000,-151.0,0.000371,7]
[422441930,1778949059000,-151.0,0.000371,7]
[422441932,1778949059000,-345.924005,0.000371,7]
[422441933,1778949059000,-345.924005,0.000371,7]
[422441937,1778949059000,-152.0,0.00037249,7]
[422441946,1778949059000,-152.0,0.00037416,7]
[422441948,1778949059000,-152.4,0.00037554,60]
[422441925,1778949059000,-151.0,0.000371,7]
[422441936,1778949059000,-8233.7061,0.00037149,2]
[422441947,1778949059000,-8233.7061,0.00037544,2]
[422441950,1778949059000,-1000.0,0.00037615,2]
[422441951,1778949059000,-1000.0,0.00037615,2]
[422441949,1778949059000,-4410.98643255,0.0003759,2]
[422441942,1778949059000,-152.0,0.00037342,7]
[422441943,1778949059000,-8233.7061,0.00037413,2]
[422441958,1778949059000,-150.0,0.00037694,2]
[422441941,1778949059000,-152.0,0.00037342,7]
[422441944,1778949059000,-152.0,0.00037416,7]
[422441940,1778949059000,-852.5551069,0.00037336,2]
[422441939,1778949059000,-555.0,0.00037282,13]
[422441938,1778949059000,-8233.7061,0.00037281,2]
[422441945,1778949059000,-152.0,0.00037416,7]